{"text_format":"3","workbook":"xlsx","n_sheets":3,"sheets":["Start","Budget-Rad","Data"],"not_rendered":{"charts":1,"defined_names":5},"read":"whole","date_system":"1900"}

{"sheet":"Start","index":0,"n_rows":7,"n_cols":2,"rows_kept":7}
[null,"Über die Vorlage"]
[null,"Behalten Sie den Überblick über Ihre monatlichen Ausgaben und Einsparungen mit dieser Vorlage."]
[null,"Geben Sie die Ausgaben und das Monatseinkommen in die Tabelle ein, um die Einsparungen zu berechnen."]
[null,"Das Ringdiagramm mit den Ausgaben und Einsparungen wird automatisch aktualisiert."]
[null,"Notiz:"]
[null,"Zusätzliche Anweisungen finden Sie in Spalte A des Arbeitsblatts BUDGET-RAD. Dieser Text wurde absichtlich ausgeblendet. Um den Text zu entfernen, markieren Sie Spalte A und wählen Sie dann LÖSCHEN. Um einen Text einzublenden, markieren Sie Spalte A und ändern Sie dann die Schriftfarbe."]
[null,"Um mehr über die Tabelle zu erfahren, drücken Sie SHIFT und dann F10 innerhalb der Tabelle, wählen Sie die Option TABLE und dann Alternativtext."]

{"sheet":"Budget-Rad","index":1,"n_rows":23,"n_cols":7,"rows_kept":23,"merged":[[0,1,0,2],[0,3,0,6],[1,2,4,4]]}
["Erstellen Sie in dieser Arbeitsvorlage einen Budget-Plan. Der Titel der Arbeitsvorlage befindet sich in der rechten Zelle und die Spitze in der Zelle D1. Weitere hilfreiche Anweisungen zur Verwendung dieser Arbeitsvorlage finden Sie in den Zellen dieser Spalte. Pfeil nach unten drücken, um loszulegen.","Budget-Rad",null,"Füllen Sie die Tabelle in dieser Vorlage aus. Die Grafik zeigt Ihre monatlichen Ausgaben im Verhältnis zu Ihrem monatlichen Einkommen. Die Vorlage berechnet auch die Prozentsätze, um Ihnen zu zeigen, wie viel Sie sparen/gespart haben."]
["Die Bezeichnung des monatlichen Einkommens befindet sich in der rechten Zelle, das Ringdiagramm zeigt Ausgaben und Ersparnisse in der Zelle C2 und den gesparten Betrag in der Zelle G2.","Monatliches \nEinkommen","Das Ringdiagramm zeigt Ausgaben und den Sparanteil in dieser Zelle.",{"$nulls":3},"Eingesparter Betrag"]
["Geben Sie das Monatseinkommen in die Zelle rechts ein. Der Sparbetrag wird in Zelle G3 automatisch berechnet. Der nächste Befehl befindet sich in Zelle A6.",{"v":5738,"d":"5,738 €"},{"$nulls":4},{"$f":"Savings","v":{"v":2777,"d":"2,777 €"}}]
[{"$nulls":6},"Berechneter Wert automatisch"]
[]
["Geben Sie Details in die Tabelle Ausgaben ein, beginnend in der Zelle rechts.","Ausgaben","Kategorie","Betrag","Häufigkeit","Monatlicher Betrag","% vom Gesamtwert"]
[null,"Versicherung","Transportkosten",{"v":300,"d":"300 €"},"Alle 6 Monate",{"$f":"IF(Expenses[[#This Row],[Betrag]]>0,IF(Expenses[[#This Row],[Häufigkeit]]<>\"\",ROUND(IF(Expenses[[#This Row],[Häufigkeit]]=\"Monatlich\",Expenses[Betrag],IF(Expenses[[#This Row],[Häufigkeit]]=\"Wöchentlich\",Expenses[[#This Row],[Betrag]]*4,IF(Expenses[[#This Row],[Häufigkeit]]=\"Vierteljährlich\",Expenses[[#This Row],[Betrag]]/3,IF(Expenses[[#This Row],[Häufigkeit]]=\"Alle 6 Monate\",Expenses[[#This Row],[Betrag]]/6,IF(Expenses[[#This Row],[Häufigkeit]]=\"Jährlich\",Expenses[[#This Row],[Betrag]]/12,IF(Expenses[[#This Row],[Häufigkeit]]=\"Jede zweite Woche\",Expenses[[#This Row],[Betrag]]*2,IF(Expenses[[#This Row],[Häufigkeit]]=\"Alle zwei Monate\",Expenses[[#This Row],[Betrag]]/2,\"\"))))))),0),\"\"),\"\")","v":{"v":50,"d":"50 €"}},{"$f":"IF(Expenses[[#This Row],[Monatlicher Betrag]]<>\"\",Expenses[[#This Row],[Monatlicher Betrag]]/Income,\"\")","v":{"v":0.00871383757406762,"d":"1%"}}]
[null,"Kraftstoff","Transportkosten",{"v":25,"d":"25 €"},"Wöchentlich",{"$f":"IF(Expenses[[#This Row],[Betrag]]>0,IF(Expenses[[#This Row],[Häufigkeit]]<>\"\",ROUND(IF(Expenses[[#This Row],[Häufigkeit]]=\"Monatlich\",Expenses[Betrag],IF(Expenses[[#This Row],[Häufigkeit]]=\"Wöchentlich\",Expenses[[#This Row],[Betrag]]*4,IF(Expenses[[#This Row],[Häufigkeit]]=\"Vierteljährlich\",Expenses[[#This Row],[Betrag]]/3,IF(Expenses[[#This Row],[Häufigkeit]]=\"Alle 6 Monate\",Expenses[[#This Row],[Betrag]]/6,IF(Expenses[[#This Row],[Häufigkeit]]=\"Jährlich\",Expenses[[#This Row],[Betrag]]/12,IF(Expenses[[#This Row],[Häufigkeit]]=\"Jede zweite Woche\",Expenses[[#This Row],[Betrag]]*2,IF(Expenses[[#This Row],[Häufigkeit]]=\"Alle zwei Monate\",Expenses[[#This Row],[Betrag]]/2,\"\"))))))),0),\"\"),\"\")","v":{"v":100,"d":"100 €"}},{"$f":"IF(Expenses[[#This Row],[Monatlicher Betrag]]<>\"\",Expenses[[#This Row],[Monatlicher Betrag]]/Income,\"\")","v":{"v":0.01742767514813524,"d":"2%"}}]
[null,"Auto-Kosten","Transportkosten",{"v":200,"d":"200 €"},"Monatlich",{"$f":"IF(Expenses[[#This Row],[Betrag]]>0,IF(Expenses[[#This Row],[Häufigkeit]]<>\"\",ROUND(IF(Expenses[[#This Row],[Häufigkeit]]=\"Monatlich\",Expenses[Betrag],IF(Expenses[[#This Row],[Häufigkeit]]=\"Wöchentlich\",Expenses[[#This Row],[Betrag]]*4,IF(Expenses[[#This Row],[Häufigkeit]]=\"Vierteljährlich\",Expenses[[#This Row],[Betrag]]/3,IF(Expenses[[#This Row],[Häufigkeit]]=\"Alle 6 Monate\",Expenses[[#This Row],[Betrag]]/6,IF(Expenses[[#This Row],[Häufigkeit]]=\"Jährlich\",Expenses[[#This Row],[Betrag]]/12,IF(Expenses[[#This Row],[Häufigkeit]]=\"Jede zweite Woche\",Expenses[[#This Row],[Betrag]]*2,IF(Expenses[[#This Row],[Häufigkeit]]=\"Alle zwei Monate\",Expenses[[#This Row],[Betrag]]/2,\"\"))))))),0),\"\"),\"\")","v":{"v":200,"d":"200 €"}},{"$f":"IF(Expenses[[#This Row],[Monatlicher Betrag]]<>\"\",Expenses[[#This Row],[Monatlicher Betrag]]/Income,\"\")","v":{"v":0.03485535029627048,"d":"3%"}}]
[null,"Hypothek","Haus",{"v":1600,"d":"1,600 €"},"Monatlich",{"$f":"IF(Expenses[[#This Row],[Betrag]]>0,IF(Expenses[[#This Row],[Häufigkeit]]<>\"\",ROUND(IF(Expenses[[#This Row],[Häufigkeit]]=\"Monatlich\",Expenses[Betrag],IF(Expenses[[#This Row],[Häufigkeit]]=\"Wöchentlich\",Expenses[[#This Row],[Betrag]]*4,IF(Expenses[[#This Row],[Häufigkeit]]=\"Vierteljährlich\",Expenses[[#This Row],[Betrag]]/3,IF(Expenses[[#This Row],[Häufigkeit]]=\"Alle 6 Monate\",Expenses[[#This Row],[Betrag]]/6,IF(Expenses[[#This Row],[Häufigkeit]]=\"Jährlich\",Expenses[[#This Row],[Betrag]]/12,IF(Expenses[[#This Row],[Häufigkeit]]=\"Jede zweite Woche\",Expenses[[#This Row],[Betrag]]*2,IF(Expenses[[#This Row],[Häufigkeit]]=\"Alle zwei Monate\",Expenses[[#This Row],[Betrag]]/2,\"\"))))))),0),\"\"),\"\")","v":{"v":1600,"d":"1,600 €"}},{"$f":"IF(Expenses[[#This Row],[Monatlicher Betrag]]<>\"\",Expenses[[#This Row],[Monatlicher Betrag]]/Income,\"\")","v":{"v":0.27884280237016384,"d":"28%"}}]
[null,"Kabel","Haus",{"v":60,"d":"60 €"},"Monatlich",{"$f":"IF(Expenses[[#This Row],[Betrag]]>0,IF(Expenses[[#This Row],[Häufigkeit]]<>\"\",ROUND(IF(Expenses[[#This Row],[Häufigkeit]]=\"Monatlich\",Expenses[Betrag],IF(Expenses[[#This Row],[Häufigkeit]]=\"Wöchentlich\",Expenses[[#This Row],[Betrag]]*4,IF(Expenses[[#This Row],[Häufigkeit]]=\"Vierteljährlich\",Expenses[[#This Row],[Betrag]]/3,IF(Expenses[[#This Row],[Häufigkeit]]=\"Alle 6 Monate\",Expenses[[#This Row],[Betrag]]/6,IF(Expenses[[#This Row],[Häufigkeit]]=\"Jährlich\",Expenses[[#This Row],[Betrag]]/12,IF(Expenses[[#This Row],[Häufigkeit]]=\"Jede zweite Woche\",Expenses[[#This Row],[Betrag]]*2,IF(Expenses[[#This Row],[Häufigkeit]]=\"Alle zwei Monate\",Expenses[[#This Row],[Betrag]]/2,\"\"))))))),0),\"\"),\"\")","v":{"v":60,"d":"60 €"}},{"$f":"IF(Expenses[[#This Row],[Monatlicher Betrag]]<>\"\",Expenses[[#This Row],[Monatlicher Betrag]]/Income,\"\")","v":{"v":0.010456605088881143,"d":"1%"}}]
[null,"Filmabend","Unterhaltung",{"v":70,"d":"70 €"},"Monatlich",{"$f":"IF(Expenses[[#This Row],[Betrag]]>0,IF(Expenses[[#This Row],[Häufigkeit]]<>\"\",ROUND(IF(Expenses[[#This Row],[Häufigkeit]]=\"Monatlich\",Expenses[Betrag],IF(Expenses[[#This Row],[Häufigkeit]]=\"Wöchentlich\",Expenses[[#This Row],[Betrag]]*4,IF(Expenses[[#This Row],[Häufigkeit]]=\"Vierteljährlich\",Expenses[[#This Row],[Betrag]]/3,IF(Expenses[[#This Row],[Häufigkeit]]=\"Alle 6 Monate\",Expenses[[#This Row],[Betrag]]/6,IF(Expenses[[#This Row],[Häufigkeit]]=\"Jährlich\",Expenses[[#This Row],[Betrag]]/12,IF(Expenses[[#This Row],[Häufigkeit]]=\"Jede zweite Woche\",Expenses[[#This Row],[Betrag]]*2,IF(Expenses[[#This Row],[Häufigkeit]]=\"Alle zwei Monate\",Expenses[[#This Row],[Betrag]]/2,\"\"))))))),0),\"\"),\"\")","v":{"v":70,"d":"70 €"}},{"$f":"IF(Expenses[[#This Row],[Monatlicher Betrag]]<>\"\",Expenses[[#This Row],[Monatlicher Betrag]]/Income,\"\")","v":{"v":0.012199372603694667,"d":"1%"}}]
[null,"Turnschuhe","Sonstiges",{"v":300,"d":"300 €"},"Jährlich",{"$f":"IF(Expenses[[#This Row],[Betrag]]>0,IF(Expenses[[#This Row],[Häufigkeit]]<>\"\",ROUND(IF(Expenses[[#This Row],[Häufigkeit]]=\"Monatlich\",Expenses[Betrag],IF(Expenses[[#This Row],[Häufigkeit]]=\"Wöchentlich\",Expenses[[#This Row],[Betrag]]*4,IF(Expenses[[#This Row],[Häufigkeit]]=\"Vierteljährlich\",Expenses[[#This Row],[Betrag]]/3,IF(Expenses[[#This Row],[Häufigkeit]]=\"Alle 6 Monate\",Expenses[[#This Row],[Betrag]]/6,IF(Expenses[[#This Row],[Häufigkeit]]=\"Jährlich\",Expenses[[#This Row],[Betrag]]/12,IF(Expenses[[#This Row],[Häufigkeit]]=\"Jede zweite Woche\",Expenses[[#This Row],[Betrag]]*2,IF(Expenses[[#This Row],[Häufigkeit]]=\"Alle zwei Monate\",Expenses[[#This Row],[Betrag]]/2,\"\"))))))),0),\"\"),\"\")","v":{"v":25,"d":"25 €"}},{"$f":"IF(Expenses[[#This Row],[Monatlicher Betrag]]<>\"\",Expenses[[#This Row],[Monatlicher Betrag]]/Income,\"\")","v":{"v":0.00435691878703381,"d":"0%"}}]
[null,"Hundefutter","Sonstiges",{"v":60,"d":"60 €"},"Monatlich",{"$f":"IF(Expenses[[#This Row],[Betrag]]>0,IF(Expenses[[#This Row],[Häufigkeit]]<>\"\",ROUND(IF(Expenses[[#This Row],[Häufigkeit]]=\"Monatlich\",Expenses[Betrag],IF(Expenses[[#This Row],[Häufigkeit]]=\"Wöchentlich\",Expenses[[#This Row],[Betrag]]*4,IF(Expenses[[#This Row],[Häufigkeit]]=\"Vierteljährlich\",Expenses[[#This Row],[Betrag]]/3,IF(Expenses[[#This Row],[Häufigkeit]]=\"Alle 6 Monate\",Expenses[[#This Row],[Betrag]]/6,IF(Expenses[[#This Row],[Häufigkeit]]=\"Jährlich\",Expenses[[#This Row],[Betrag]]/12,IF(Expenses[[#This Row],[Häufigkeit]]=\"Jede zweite Woche\",Expenses[[#This Row],[Betrag]]*2,IF(Expenses[[#This Row],[Häufigkeit]]=\"Alle zwei Monate\",Expenses[[#This Row],[Betrag]]/2,\"\"))))))),0),\"\"),\"\")","v":{"v":60,"d":"60 €"}},{"$f":"IF(Expenses[[#This Row],[Monatlicher Betrag]]<>\"\",Expenses[[#This Row],[Monatlicher Betrag]]/Income,\"\")","v":{"v":0.010456605088881143,"d":"1%"}}]
[null,"Haustier-Versicherung","Sonstiges",{"v":70,"d":"70 €"},"Jährlich",{"$f":"IF(Expenses[[#This Row],[Betrag]]>0,IF(Expenses[[#This Row],[Häufigkeit]]<>\"\",ROUND(IF(Expenses[[#This Row],[Häufigkeit]]=\"Monatlich\",Expenses[Betrag],IF(Expenses[[#This Row],[Häufigkeit]]=\"Wöchentlich\",Expenses[[#This Row],[Betrag]]*4,IF(Expenses[[#This Row],[Häufigkeit]]=\"Vierteljährlich\",Expenses[[#This Row],[Betrag]]/3,IF(Expenses[[#This Row],[Häufigkeit]]=\"Alle 6 Monate\",Expenses[[#This Row],[Betrag]]/6,IF(Expenses[[#This Row],[Häufigkeit]]=\"Jährlich\",Expenses[[#This Row],[Betrag]]/12,IF(Expenses[[#This Row],[Häufigkeit]]=\"Jede zweite Woche\",Expenses[[#This Row],[Betrag]]*2,IF(Expenses[[#This Row],[Häufigkeit]]=\"Alle zwei Monate\",Expenses[[#This Row],[Betrag]]/2,\"\"))))))),0),\"\"),\"\")","v":{"v":6,"d":"6 €"}},{"$f":"IF(Expenses[[#This Row],[Monatlicher Betrag]]<>\"\",Expenses[[#This Row],[Monatlicher Betrag]]/Income,\"\")","v":{"v":1.0456605088881143E-3,"d":"0%"}}]
[null,"Lebensmittel","Essen",{"v":100,"d":"100 €"},"Wöchentlich",{"$f":"IF(Expenses[[#This Row],[Betrag]]>0,IF(Expenses[[#This Row],[Häufigkeit]]<>\"\",ROUND(IF(Expenses[[#This Row],[Häufigkeit]]=\"Monatlich\",Expenses[Betrag],IF(Expenses[[#This Row],[Häufigkeit]]=\"Wöchentlich\",Expenses[[#This Row],[Betrag]]*4,IF(Expenses[[#This Row],[Häufigkeit]]=\"Vierteljährlich\",Expenses[[#This Row],[Betrag]]/3,IF(Expenses[[#This Row],[Häufigkeit]]=\"Alle 6 Monate\",Expenses[[#This Row],[Betrag]]/6,IF(Expenses[[#This Row],[Häufigkeit]]=\"Jährlich\",Expenses[[#This Row],[Betrag]]/12,IF(Expenses[[#This Row],[Häufigkeit]]=\"Jede zweite Woche\",Expenses[[#This Row],[Betrag]]*2,IF(Expenses[[#This Row],[Häufigkeit]]=\"Alle zwei Monate\",Expenses[[#This Row],[Betrag]]/2,\"\"))))))),0),\"\"),\"\")","v":{"v":400,"d":"400 €"}},{"$f":"IF(Expenses[[#This Row],[Monatlicher Betrag]]<>\"\",Expenses[[#This Row],[Monatlicher Betrag]]/Income,\"\")","v":{"v":0.06971070059254096,"d":"7%"}}]
[null,"Kaffee","Essen",{"v":25,"d":"25 €"},"Wöchentlich",{"$f":"IF(Expenses[[#This Row],[Betrag]]>0,IF(Expenses[[#This Row],[Häufigkeit]]<>\"\",ROUND(IF(Expenses[[#This Row],[Häufigkeit]]=\"Monatlich\",Expenses[Betrag],IF(Expenses[[#This Row],[Häufigkeit]]=\"Wöchentlich\",Expenses[[#This Row],[Betrag]]*4,IF(Expenses[[#This Row],[Häufigkeit]]=\"Vierteljährlich\",Expenses[[#This Row],[Betrag]]/3,IF(Expenses[[#This Row],[Häufigkeit]]=\"Alle 6 Monate\",Expenses[[#This Row],[Betrag]]/6,IF(Expenses[[#This Row],[Häufigkeit]]=\"Jährlich\",Expenses[[#This Row],[Betrag]]/12,IF(Expenses[[#This Row],[Häufigkeit]]=\"Jede zweite Woche\",Expenses[[#This Row],[Betrag]]*2,IF(Expenses[[#This Row],[Häufigkeit]]=\"Alle zwei Monate\",Expenses[[#This Row],[Betrag]]/2,\"\"))))))),0),\"\"),\"\")","v":{"v":100,"d":"100 €"}},{"$f":"IF(Expenses[[#This Row],[Monatlicher Betrag]]<>\"\",Expenses[[#This Row],[Monatlicher Betrag]]/Income,\"\")","v":{"v":0.01742767514813524,"d":"2%"}}]
[null,"Kletterausrüstung","Unterhaltung",{"v":170,"d":"170 €"},"Jährlich",{"$f":"IF(Expenses[[#This Row],[Betrag]]>0,IF(Expenses[[#This Row],[Häufigkeit]]<>\"\",ROUND(IF(Expenses[[#This Row],[Häufigkeit]]=\"Monatlich\",Expenses[Betrag],IF(Expenses[[#This Row],[Häufigkeit]]=\"Wöchentlich\",Expenses[[#This Row],[Betrag]]*4,IF(Expenses[[#This Row],[Häufigkeit]]=\"Vierteljährlich\",Expenses[[#This Row],[Betrag]]/3,IF(Expenses[[#This Row],[Häufigkeit]]=\"Alle 6 Monate\",Expenses[[#This Row],[Betrag]]/6,IF(Expenses[[#This Row],[Häufigkeit]]=\"Jährlich\",Expenses[[#This Row],[Betrag]]/12,IF(Expenses[[#This Row],[Häufigkeit]]=\"Jede zweite Woche\",Expenses[[#This Row],[Betrag]]*2,IF(Expenses[[#This Row],[Häufigkeit]]=\"Alle zwei Monate\",Expenses[[#This Row],[Betrag]]/2,\"\"))))))),0),\"\"),\"\")","v":{"v":14,"d":"14 €"}},{"$f":"IF(Expenses[[#This Row],[Monatlicher Betrag]]<>\"\",Expenses[[#This Row],[Monatlicher Betrag]]/Income,\"\")","v":{"v":2.4398745207389336E-3,"d":"0%"}}]
[null,"Mitgliedschaft im Fitnessclub","Sonstiges",{"v":60,"d":"60 €"},"Monatlich",{"$f":"IF(Expenses[[#This Row],[Betrag]]>0,IF(Expenses[[#This Row],[Häufigkeit]]<>\"\",ROUND(IF(Expenses[[#This Row],[Häufigkeit]]=\"Monatlich\",Expenses[Betrag],IF(Expenses[[#This Row],[Häufigkeit]]=\"Wöchentlich\",Expenses[[#This Row],[Betrag]]*4,IF(Expenses[[#This Row],[Häufigkeit]]=\"Vierteljährlich\",Expenses[[#This Row],[Betrag]]/3,IF(Expenses[[#This Row],[Häufigkeit]]=\"Alle 6 Monate\",Expenses[[#This Row],[Betrag]]/6,IF(Expenses[[#This Row],[Häufigkeit]]=\"Jährlich\",Expenses[[#This Row],[Betrag]]/12,IF(Expenses[[#This Row],[Häufigkeit]]=\"Jede zweite Woche\",Expenses[[#This Row],[Betrag]]*2,IF(Expenses[[#This Row],[Häufigkeit]]=\"Alle zwei Monate\",Expenses[[#This Row],[Betrag]]/2,\"\"))))))),0),\"\"),\"\")","v":{"v":60,"d":"60 €"}},{"$f":"IF(Expenses[[#This Row],[Monatlicher Betrag]]<>\"\",Expenses[[#This Row],[Monatlicher Betrag]]/Income,\"\")","v":{"v":0.010456605088881143,"d":"1%"}}]
[null,"Kopfhörer","Unterhaltung",{"v":50,"d":"50 €"},"Jährlich",{"$f":"IF(Expenses[[#This Row],[Betrag]]>0,IF(Expenses[[#This Row],[Häufigkeit]]<>\"\",ROUND(IF(Expenses[[#This Row],[Häufigkeit]]=\"Monatlich\",Expenses[Betrag],IF(Expenses[[#This Row],[Häufigkeit]]=\"Wöchentlich\",Expenses[[#This Row],[Betrag]]*4,IF(Expenses[[#This Row],[Häufigkeit]]=\"Vierteljährlich\",Expenses[[#This Row],[Betrag]]/3,IF(Expenses[[#This Row],[Häufigkeit]]=\"Alle 6 Monate\",Expenses[[#This Row],[Betrag]]/6,IF(Expenses[[#This Row],[Häufigkeit]]=\"Jährlich\",Expenses[[#This Row],[Betrag]]/12,IF(Expenses[[#This Row],[Häufigkeit]]=\"Jede zweite Woche\",Expenses[[#This Row],[Betrag]]*2,IF(Expenses[[#This Row],[Häufigkeit]]=\"Alle zwei Monate\",Expenses[[#This Row],[Betrag]]/2,\"\"))))))),0),\"\"),\"\")","v":{"v":4,"d":"4 €"}},{"$f":"IF(Expenses[[#This Row],[Monatlicher Betrag]]<>\"\",Expenses[[#This Row],[Monatlicher Betrag]]/Income,\"\")","v":{"v":6.9710700592540956E-4,"d":"0%"}}]
[null,"Friseur","Sonstiges",{"v":70,"d":"70 €"},"Monatlich",{"$f":"IF(Expenses[[#This Row],[Betrag]]>0,IF(Expenses[[#This Row],[Häufigkeit]]<>\"\",ROUND(IF(Expenses[[#This Row],[Häufigkeit]]=\"Monatlich\",Expenses[Betrag],IF(Expenses[[#This Row],[Häufigkeit]]=\"Wöchentlich\",Expenses[[#This Row],[Betrag]]*4,IF(Expenses[[#This Row],[Häufigkeit]]=\"Vierteljährlich\",Expenses[[#This Row],[Betrag]]/3,IF(Expenses[[#This Row],[Häufigkeit]]=\"Alle 6 Monate\",Expenses[[#This Row],[Betrag]]/6,IF(Expenses[[#This Row],[Häufigkeit]]=\"Jährlich\",Expenses[[#This Row],[Betrag]]/12,IF(Expenses[[#This Row],[Häufigkeit]]=\"Jede zweite Woche\",Expenses[[#This Row],[Betrag]]*2,IF(Expenses[[#This Row],[Häufigkeit]]=\"Alle zwei Monate\",Expenses[[#This Row],[Betrag]]/2,\"\"))))))),0),\"\"),\"\")","v":{"v":70,"d":"70 €"}},{"$f":"IF(Expenses[[#This Row],[Monatlicher Betrag]]<>\"\",Expenses[[#This Row],[Monatlicher Betrag]]/Income,\"\")","v":{"v":0.012199372603694667,"d":"1%"}}]
[null,"Video Spiele","Unterhaltung",{"v":100,"d":"100 €"},"Monatlich",{"$f":"IF(Expenses[[#This Row],[Betrag]]>0,IF(Expenses[[#This Row],[Häufigkeit]]<>\"\",ROUND(IF(Expenses[[#This Row],[Häufigkeit]]=\"Monatlich\",Expenses[Betrag],IF(Expenses[[#This Row],[Häufigkeit]]=\"Wöchentlich\",Expenses[[#This Row],[Betrag]]*4,IF(Expenses[[#This Row],[Häufigkeit]]=\"Vierteljährlich\",Expenses[[#This Row],[Betrag]]/3,IF(Expenses[[#This Row],[Häufigkeit]]=\"Alle 6 Monate\",Expenses[[#This Row],[Betrag]]/6,IF(Expenses[[#This Row],[Häufigkeit]]=\"Jährlich\",Expenses[[#This Row],[Betrag]]/12,IF(Expenses[[#This Row],[Häufigkeit]]=\"Jede zweite Woche\",Expenses[[#This Row],[Betrag]]*2,IF(Expenses[[#This Row],[Häufigkeit]]=\"Alle zwei Monate\",Expenses[[#This Row],[Betrag]]/2,\"\"))))))),0),\"\"),\"\")","v":{"v":100,"d":"100 €"}},{"$f":"IF(Expenses[[#This Row],[Monatlicher Betrag]]<>\"\",Expenses[[#This Row],[Monatlicher Betrag]]/Income,\"\")","v":{"v":0.01742767514813524,"d":"2%"}}]
[null,"Bekleidung","Sonstiges",{"v":500,"d":"500 €"},"Jährlich",{"$f":"IF(Expenses[[#This Row],[Betrag]]>0,IF(Expenses[[#This Row],[Häufigkeit]]<>\"\",ROUND(IF(Expenses[[#This Row],[Häufigkeit]]=\"Monatlich\",Expenses[Betrag],IF(Expenses[[#This Row],[Häufigkeit]]=\"Wöchentlich\",Expenses[[#This Row],[Betrag]]*4,IF(Expenses[[#This Row],[Häufigkeit]]=\"Vierteljährlich\",Expenses[[#This Row],[Betrag]]/3,IF(Expenses[[#This Row],[Häufigkeit]]=\"Alle 6 Monate\",Expenses[[#This Row],[Betrag]]/6,IF(Expenses[[#This Row],[Häufigkeit]]=\"Jährlich\",Expenses[[#This Row],[Betrag]]/12,IF(Expenses[[#This Row],[Häufigkeit]]=\"Jede zweite Woche\",Expenses[[#This Row],[Betrag]]*2,IF(Expenses[[#This Row],[Häufigkeit]]=\"Alle zwei Monate\",Expenses[[#This Row],[Betrag]]/2,\"\"))))))),0),\"\"),\"\")","v":{"v":42,"d":"42 €"}},{"$f":"IF(Expenses[[#This Row],[Monatlicher Betrag]]<>\"\",Expenses[[#This Row],[Monatlicher Betrag]]/Income,\"\")","v":{"v":7.3196235622168E-3,"d":"1%"}}]

{"sheet":"Data","index":2,"n_rows":10,"n_cols":5,"rows_kept":10,"hidden":true}
["Dieses Blatt sollte verborgen bleiben."]
["Kategorien","Betrag pro Kategorie","Prozentsatz des Gesamtbetrages","Häufigkeit","Einsparungen"]
["Haus",{"$f":"IF(SUMIF(Expenses[Kategorie],\"Haus\",Expenses[Monatlicher Betrag])>0,SUMIF(Expenses[Kategorie],\"Haus\",Expenses[Monatlicher Betrag]),NA())","v":{"v":1660,"d":"1,660 €"}},{"$f":"IF(B3>0,B3/Income,\"\")","v":{"v":0.289299407459045,"d":"29%"}},"Wöchentlich",{"$f":"Income-SUM(Expenses[Monatlicher Betrag])","v":{"v":2777,"d":"2,777 €"}}]
["Unterhaltung",{"$f":"IF(SUMIF(Expenses[Kategorie],\"Unterhaltung\",Expenses[Monatlicher Betrag])>0,SUMIF(Expenses[Kategorie],\"Unterhaltung\",Expenses[Monatlicher Betrag]),NA())","v":{"v":188,"d":"188 €"}},{"v":0.03276402927849425,"d":"3%"},"Monatlich"]
["Transportkosten",{"$f":"IF(SUMIF(Expenses[Kategorie],\"Transportkosten\",Expenses[Monatlicher Betrag])>0,SUMIF(Expenses[Kategorie],\"Transportkosten\",Expenses[Monatlicher Betrag]),NA())","v":{"v":350,"d":"350 €"}},{"v":0.06099686301847333,"d":"6%"},"Vierteljährlich"]
["Essen",{"$f":"IF(SUMIF(Expenses[Kategorie],\"Essen\",Expenses[Monatlicher Betrag])>0,SUMIF(Expenses[Kategorie],\"Essen\",Expenses[Monatlicher Betrag]),NA())","v":{"v":500,"d":"500 €"}},{"v":0.08713837574067619,"d":"9%"},"Alle 6 Monate"]
["Sonstiges",{"$f":"IF(SUMIF(Expenses[Kategorie],\"Sonstiges\",Expenses[Monatlicher Betrag])>0,SUMIF(Expenses[Kategorie],\"Sonstiges\",Expenses[Monatlicher Betrag]),NA())","v":{"v":263,"d":"263 €"}},{"v":0.04583478563959568,"d":"5%"},"Jährlich"]
["Einsparungen",{"$f":"IF(E3>0,E3,NA())","v":{"v":2777,"d":"2,777 €"}},{"v":0.4839665388637156,"d":"48%"},"Jede zweite Woche"]
[{"$nulls":3},"Alle zwei Monate"]
[null,"GESAMT:",{"$f":"SUM(C3:C8)","v":{"v":1,"d":"100%"}}]